Cogmind - Beta 11 @@@ ROGUE MODE // 2022.04.18 @ 00:58:55 Player: Cai Result: Destroyed by Y-45 Defender with Heavy Assault Rifle Performance ------------- Evolutions (1) 500 Regions Visited (2) 400 Robots Destroyed (27) 135 Value Destroyed (583) 583 Prototype IDs (0) 0 Alien Tech Used (0) 0 Bonus (0) 0 TOTAL SCORE: 1618 Bonus ------- None Cogmind --------- Core Integrity 0/400 Matter 300/300 Energy 78/100 System Corruption 0% Temperature Cool (0) Movement Core (50) Location -9/Materials Parts ------- > --- POWER (1) -------- (None) > --- PROPULSION (3) --- (None) > --- UTILITY (3) ------ (None) > --- WEAPON (2) ------- (None) > --- INVENTORY (5) ---- Ion Engine Sensor Array Improved Terrain Scanner Seismic Detector Mace Peak State ------------ > --- POWER ------------ Ion Engine > --- PROPULSION ------- Wheel Armored Wheel Armored Wheel > --- UTILITY ---------- Improved Heat Sink Medium Storage Unit Sensor Array > --- WEAPON ----------- Particle Cannon Mace > --- INVENTORY -------- Light Ion Engine Wheel Improved Terrain Scanner Seismic Detector EM Pulse Gun Beam Cannon Assault Rifle Mining Laser [Rating: 16] Favorites ----------- Power Ion Engine Engine Ion Engine Propulsion Armored Wheel Wheel Armored Wheel Utility Medium Storage Unit Device Sensor Array Storage Medium Storage Unit Processor Signal Interpreter Weapon EM Pulse Gun Energy Gun EM Pulse Gun Energy Cannon Particle Cannon Ballistic Gun Assault Rifle Special Weapon Mining Laser Impact Weapon Mace Build | -11 -10 -9 ------- Run | Scr Mat Mat Slots Evolved 2 | . . 2 Power . | . . . Propulsion 1 | . . 1 Utility 1 | . . 1 Weapon . | . . . Parts Attached 44 | 13 16 15 Power 5 | 1 4 . Engine 5 | 1 4 . Core . | . . . Reactor . | . . . Propulsion 12 | 7 3 2 Treads . | . . . Leg . | . . . Wheel 12 | 7 3 2 Hover . | . . . Flight . | . . . Utility 10 | 3 4 3 Device 6 | 2 1 3 Storage 3 | 1 2 . Processor 1 | . 1 . Hackware . | . . . Protection . | . . . Artifact . | . . . Weapon 17 | 2 5 10 Energy Gun 6 | 1 2 3 Energy Cannon 2 | . . 2 Ballistic Gun 4 | 1 2 1 Ballistic Cannon . | . . . Launcher . | . . . Special Weapon 1 | . . 1 Impact Weapon 4 | . 1 3 Slashing Weapon . | . . . Piercing Weapon . | . . . Special Melee Weapon . | . . . Unidentified Prototypes . | . . . Corrupted Parts 1 | . 1 . System Corruption 3 | . 3 . Parts Lost 13 | . 1 12 Power 1 | . . 1 Propulsion 4 | . . 4 Utility 2 | . . 2 Weapon 6 | . 1 5 Highest Loss Streak 11 | . 1 11 To Critical Strikes . | . . . Average Slot Usage (%) 95 | . 100 89 Engine 11 | . 14 9 Wheel 28 | . 28 28 Device 11 | . 5 17 Storage 11 | . 12 11 Processor 6 | . 10 2 Energy Gun 11 | . 14 8 Energy Cannon 3 | . . 8 Ballistic Gun 5 | . 7 2 Impact Weapon 4 | . 6 1 Naked Turns 1 | . . 1 Heaviest Build 23 | 13 20 23 Greatest Support 34 | 32 24 34 Greatest Overweight (x) 3 | . . 3 Average Overweight (x) . | . . . Largest Inventory Capacity 10 | 8 10 10 Average Capacity 9 | 5 9 9 Most Carried 10 | 5 10 10 Average Carried 8 | 3 9 8 Final Capacity 10 | 5 10 5 Final Carried 10 | 5 10 5 Class Distribution -------------------- 84% | Mutant 15% | Scavenger-Mutant Dominant Class ---------------- Mutant | -10/Materials Mutant | -9/Materials Resources | -11 -10 -9 ----------- Run | Scr Mat Mat Matter Collected 683 | 348 206 129 Remotely . | . . . Salvage Created 1052 | 180 326 546 Parts 57 | 15 16 26 Haulers Intercepted 3 | . 1 2 Recyclers Shooed . | . . . Parts Field Recycled . | . . . Retrieved Matter . | . . . Parts Self-Destructed . | . . . Prevented . | . . . Kills | -11 -10 -9 ------- Run | Scr Mat Mat Combat Hostiles Destroyed 14 | . 3 11 Melee 1 | . . 1 Guns 6 | . 3 3 Cannons 6 | . . 6 Classes Destroyed 7 | 2 3 2 Tunneler 4 | 4 . . Hauler 3 | . 1 2 Recycler 2 | 1 1 . Watcher 4 | . 3 1 Swarmer 3 | . . 3 Grunt 8 | . 3 5 Sentry 3 | . . 3 Best Kill Streak 5 | 4 5 5 Combat Bots Only 5 | . 2 5 Max Kills in Single Turn 2 | 2 1 2 Gunslinging . | . . . Exploded . | . . . Melee 1 | . . 1 Uniques/NPCs Destroyed . | . . . Combat | -11 -10 -9 -------- Run | Scr Mat Mat Damage Taken 1527 | . 237 1290 Core 429 | . 26 403 Absorbed by Shields . | . . . Core Remaining (%) 94 | 100 89 . Volleys Fired 60 | 6 26 28 Largest 2 | 2 2 2 Hottest 128 | 60 60 128 Shots Fired 106 | 12 41 53 Gun 74 | 12 41 21 Cannon 31 | . . 31 Launcher . | . . . Special 1 | . . 1 Kinetic 23 | 6 15 2 Thermal 32 | . . 32 Explosive . | . . . Electromagnetic 51 | 6 26 19 Robot Hit Streak 7 | 3 7 6 Robot Miss Streak 3 | 1 3 3 Penetration Max . | . . . Secondary Targets . | . . . Shots Hit Robots 76 | 9 27 40 Core Hits 38 | 6 13 19 Critical Kills 1 | . . 1 Critical Parts Destroyed 2 | . . 2 Critical Strikes 6 | 1 2 3 Corrupt 3 | 1 2 . Smash 3 | . . 3 Melee Attacks 24 | . 3 21 Impact 24 | . 3 21 Slashing . | . . . Piercing . | . . . Sneak Attacks . | . . . Combat Hostiles . | . . . Follow-up Attacks . | . . . Damage Inflicted 1354 | 111 484 759 Guns 645 | 111 386 148 Cannons 360 | . . 360 Explosions 98 | . 98 . Melee 227 | . . 227 Ramming . | . . . Kinetic 223 | 73 129 21 Thermal 482 | . 98 384 Explosive . | . . . Electromagnetic 422 | 38 257 127 Impact 227 | . . 227 Slashing . | . . . Piercing . | . . . Highest Corruption 3 | . 3 . Average Corruption 3 | . 3 . Corruption Purged . | . . . Corruption Blocked . | . . . Effects 6 | . 6 . Message Errors 1 | . 1 . Matter Fused 1 | . 1 . Heat Flow Errors 1 | . 1 . Energy Discharges 2 | . 2 . Data Loss (minor) 1 | . 1 . Overload Shots . | . . . Overflow Damage 63 | . 1 62 Projectiles . | . . . Explosions 1 | . 1 . Melee 62 | . . 62 Knockbacks . | . . . Impact . | . . . Kinetic . | . . . Secondary . | . . . Self-Inflicted Damage 46 | . 46 . Shots 1 | . 1 . Rammed . | . . . Targets Rammed . | . . . Kicked . | . . . Crushed . | . . . Highest Temperature 241 | . 241 159 Average Temperature 50 | . 61 42 Received Heat Transfer 753 | . 108 645 Siege Activations . | . . . Robots Corrupted . | . . . Combat Hostiles . | . . . Parts Fried 2 | . 1 1 Impact Corruptions 3 | . . 3 Robots Melted . | . . . Combat Hostiles . | . . . Parts Melted . | . . . Heat Transferred 816 | . 100 716 Parts Sabotaged . | . . . Parts Stolen . | . . . Parts Stripped . | . . . Power Chain Reactions 2 | . 2 . Missiles Intercepted . | . . . Alert | -11 -10 -9 ------- Run | Scr Mat Mat Peak Influence 314 | 25 124 314 Initial 21 | . 16 21 Average 85 | 15 84 108 Maximum Alert Level 1 | . . 1 Low Security (%) 92 | 100 100 81 Level 1 7 | . . 18 Level 2 . | . . . Level 3 . | . . . Level 4 . | . . . Level 5 . | . . . High Security . | . . . Max Security . | . . . Squads Dispatched 3 | . 1 2 Investigation . | . . . Extermination . | . . . Reinforcement 3 | . 1 2 Assault . | . . . Garrison . | . . . Intercept . | . . . Searches Triggered . | . . . Construction Impeded . | . . . Haulers Reinforced . | . . . Active Scanning Responses . | . . . Cargo Convoy Interrupts . | . . . Stealth | -11 -10 -9 --------- Run | Scr Mat Mat Distress Signals 1 | . . 1 Communications Jammed . | . . . Distress Signals . | . . . Times Spotted 31 | . 10 21 Peak Tracking Total 10 | . 6 10 Tactical Retreats 2 | . . 2 Traps | -11 -10 -9 ------- Run | Scr Mat Mat Traps Triggered 2 | . 2 . Indirectly . | . . . Trap Hack Attempts . | . . . Triggered . | . . . Disarmed . | . . . Reprogrammed . | . . . Reused . | . . . Traps Extracted . | . . . Installed . | . . . Triggered . | . . . Machines | -11 -10 -9 ---------- Run | Scr Mat Mat Machines Disabled 1 | . . 1 Max in Single Turn 1 | . . 1 Machines Sabotaged . | . . . Garrisons Compromised . | . . . Overloaded Fab Kills . | . . . Hacking | -11 -10 -9 --------- Run | Scr Mat Mat Machines Accessed 4 | . 4 . Terminals 3 | . 3 . Fabricators . | . . . Repair Stations . | . . . Recycling Units 1 | . 1 . Scanalyzers . | . . . Garrison Access . | . . . Total Hacks 8 | . 8 . Successful 5 | . 5 . Failed 3 | . 3 . Catastrophic 1 | . 1 . Database Lockouts . | . . . Manual . | . . . Terminals 7 | . 7 . Fabricators . | . . . Repair Stations . | . . . Recycling Units 1 | . 1 . Scanalyzers . | . . . Garrison Access . | . . . Terminal Hacks 4 | . 4 . Record 1 | . 1 . Terminal Index 1 | . 1 . Hauler Manifests 1 | . 1 . Zone Layout 1 | . 1 . Fabricator Hacks . | . . . Repair Station Hacks . | . . . Recycling Unit Hacks 1 | . 1 . Report Inventory 1 | . 1 . Scanalyzer . | . . . Garrison Access Hacks . | . . . Unauthorized Hacks . | . . . Terminals . | . . . Fabricators . | . . . Repair Stations . | . . . Recycling Units . | . . . Scanalyzers . | . . . Garrison Access . | . . . Data Cores Recovered . | . . . Used . | . . . Hacking Detections 2 | . 2 . Full Trace Events . | . . . Feedback Events . | . . . Feedback Blocked . | . . . Robot Schematics Acquired . | . . . Robots Built . | . . . Authchips . | . . . Time . | . . . Total Robot Build Rating . | . . . Part Schematics Acquired . | . . . Parts Built . | . . . Authchips . | . . . Time . | . . . Total Part Build Rating . | . . . Parts Repaired . | . . . Time . | . . . Parts Recycled . | . . . Recycled Matter . | . . . Retrieved Matter . | . . . Retrieved Components . | . . . Parts Scanalyzed . | . . . Part Schematics Acquired . | . . . Parts Damaged . | . . . Bothacking | -11 -10 -9 ------------ Run | Scr Mat Mat Used RIF Installer . | . . . Robots Hacked . | . . . Non-combat . | . . . Combat . | . . . Robot Hacks Applied . | . . . Relay Couplers Released . | . . . Fabnet Peak Effective % . | . . . Robots Rewired . | . . . Allies Hacked . | . . . Hacks Repelled . | . . . Allies | -11 -10 -9 -------- Run | Scr Mat Mat Total Allies . | . . . Largest Group . | . . . Highest-Rated Group . | . . . Highest-Rated Ally . | . . . Total Orders . | . . . Ally Attacks . | . . . Total Damage . | . . . Kills . | . . . Allies Corrupted . | . . . Allies Melted . | . . . Intel | -11 -10 -9 ------- Run | Scr Mat Mat Robot Analysis Total . | . . . Derelict Logs Recovered . | . . . Drone Launches . | . . . Drone Recoveries . | . . . Exploration | -11 -10 -9 ------------- Run | Scr Mat Mat Turns Passed 1161 | 156 528 477 Spaces Moved 913 | 119 465 329 Core 11 | 5 . 6 Treads . | . . . Legs . | . . . Wheels 902 | 114 465 323 Hover . | . . . Flight . | . . . Fastest Speed 50 | 50 80 50 Average Speed 88 | 92 87 87 Slowest Speed 200 | 100 90 200 Overloaded Moves . | . . . Propulsion Burnouts . | . . . Robots Hopped . | . . . Cave-ins Triggered . | . . . Exploration Rate (%) 31 | 4 62 28 Regions Visited 2 Branch Regions . Pre-discovered Areas . | . . . Known Exits Taken 1 | . 1 . Unknown Exits Taken 1 | 1 . . Scrap Searched . | . . . Spaces Dug 9 | . 3 6 Terrain Destroyed 18 | . 12 6 Melee 9 | . 3 6 Projectile . | . . . AOE 9 | . 9 . Terrain Rammed . | . . . Walls Destroyed . | . . . Machines Disabled . | . . . Actions | -11 -10 -9 --------- Run | Scr Mat Mat Total 1118 | 154 540 424 Wait 36 | . 11 25 Move 911 | 118 464 329 Hop . | . . . Pick Up 24 | 10 10 4 Fast Attach 8 | 6 2 . Attach 12 | 3 2 7 Detach 2 | 1 . 1 Swap 24 | 4 12 8 Drop 17 | 6 10 1 Fire 60 | 6 26 28 Melee 24 | . 3 21 Ram . | . . . Kick . | . . . Crush . | . . . Escape Stasis . | . . . Rewire . | . . . Trap . | . . . Miscellaneous . | . . . Route ------- -11/Scrapyard -10/Materials (discovered 3 exits: *Mat x2 / [*Min]) -9/Materials History --------- Turn | Location | Event 14 | -11/Scrapyard | Discovered new exit (range 16) 157 | -11/Scrapyard | Entered Materials 184 | -10/Materials | Discovered new exit (range 16) 285 | -10/Materials | Discovered new exit (range 4) 483 | -10/Materials | Build established: Mutant 648 | -10/Materials | Discovered new exit (range 5) 653 | -10/Materials | Identified exit to Materials 685 | -10/Materials | Entered another Materials area 685 | -9/Materials | Evolved 2 slots: Propulsion x1, Utility x1 1147 | -9/Materials | Core integrity fell below 50% 1158 | -9/Materials | Core integrity fell below 20% 1161 | -9/Materials | Released all parts (1) 1162 | -9/Materials | Destroyed by Y-45 Defender with Heavy Assault Rifle Last Messages --------------- Acquired 15 matter. G-34 Mercenary suffers critical hit (Smash). Destroyed Aluminum Leg. Destroyed Heat Sink. G-34 Mercenary system corrupted by crushing effect. G-34 Mercenary system terminally corrupted. Imp. Heat Sink destroyed. Arm. Wheel destroyed. Critical hit (Burn: +37). Y-45 Defender destroyed. G-47 Trooper IFF system glitched. G-34 Mercenary destroyed. Mining Laser destroyed. Acquired 21 matter. Critical hit (Burn: +37). Assault Rifle destroyed. U-05 Engineer builds a Wall. Critical hit (Burn: +37). U-05 Engineer builds a Wall. Released Med. Storage Unit. Map ----- +----------------------------------------------------+ | ???????# ??????????????????????????????????????? | | ???????# #?????????????????????????????????????? | | ???????# #?????????????????????????????????????? | | ???????# #?????????????????????????????????????? | | ???????# ########??????????????????????????????? | | ???????# # #??????????????????????????????? | | #??????# # !#??????????????????????????????? | | #??????# # """ #??????????????????????????????? | | #??????# /!"""*!#########??????????????????????? | | #??????# #!"%=!!/ ???????????????????????? | | #??????# #=!!%!!###????????????????????????????? | | #??????# ####+###??????????????????????????????? | | #??????# #??# #??#########?????????????????????? | | #??????# #??# #### """" #?????????????????????? | | ######## #??# %+ ""S"" #?????????????????????? | | #??###### "" "" #?????????????????????? | | ######## #???????# #?????????????????????? | | #??????# #???????# #?????????????????????? | | #??????# #???????# #?????????????????????? | | ???????# #???????# *! #?????????????????????? | | ???????# #???????# *! #?????????????????????? | | ???????# #??????## ! #?????????????????????? | | ???????# #??????# ![ #?????????????????????? | | ?????? # #??????##*%% #?????????????????????? | | ????"" # #????######+#+####### o #???????????? | | #??? # ###### =%#%!!@ #???????????? | | #??? # # # [%Y= ] ????????? | | #??? # # # [%#= #???????????? | | #??? ?# # # ####### ### #???????????? | | ####+### # # #??????+#????####???????????? | | # + # #???????????????????????????? | | +% # # #???????????????????????????? | | # # ######???????????????????????????? | | # ######+# "#########???????????????????????? | | # # # # #???????????????????????? | | # # ###### """ #???????????#???????????? | | # + #????# """ ########+## ????????? | | #! !# """ #????# """ # ????????? | | # ! # """ #????# + ! T ?????????? | | # *# """ !#????# """ # ????????? | | # ########??### """ # ######### ! ????????? | | # #?????????# " """ # #?????????# #?????????? | | # #?????????### + #?????????# #?????????? | | #^ #???????????########## #?????????# #?????????? | | #^ ^#????????????????????# #?######### #?????????? | | # #????????????????????# #?# ## #?????????? | | # #????????????????????# #?# ## #########?? | | # #????????????????????# #?# """ # # #?? | | # #????????????????????# #?# """ # # """#?? | | # #??????????????#######+#?# """ + + """#?? | +----------------------------------------------------+ Best States ------------- Heat Dissipation 42 Energy Generation 10 Energy Capacity 250 Matter Stores 300 Matter Capacity 300 Sight Range 16 Robot Scan Range 14 Terrain Scan Range 16 Terrain Scan Density 10 Evasion (%) 44 Item Schematics ----------------- None Robot Schematics ------------------ None Fabricated ------------ Nothing Alien Tech Used ----------------- None Achievements -------------- None Challenges ------------ None Game ------ Seed HardcellTrapUnit Manual? 0 Play Time 00:44:37 Cumulative 36.2 hours Start 2022.04.18 @ 00:06:44 End 2022.04.18 @ 00:58:55 Sessions 1 Manual Loads 0 Difficulty Rogue Special Mode None Game No. 19 Rogue 19 Adventurer 0 Explorer 0 Win Type - Total 0 Types 0/0/0/0/0/0/0/0/0 Lore% 19 Gallery% 30 Achievement% 22 Wizard Run 0 Options --------- ASCII 0 Keyboard 0 Movement Arrows Keybinds 0 Fullscreen 2 Font 24/Terminus Map View 76x50 Tactical HUD 0 Map Filters NONE Filters NONE Steam 1 RUN: c46d1fee-9128-424b-917f-84c46ea4cf81